{"text_format":"1","workbook":"xlsx","n_sheets":4,"sheets":["1","2","3","4"],"not_rendered":{"charts":0,"images":0,"macros":0,"external_links":0,"defined_names":9,"comments":0,"pivot_tables":0},"unopened":[],"bounds":{"document_bytes":16777216,"sheet_cells":100000,"rows_first":2000,"rows_last":500,"rows_between":2000,"halvings":0,"cell_chars":16384,"cell_head_chars":4096},"cells_cut":0,"cells_raw":0,"read":"whole","date_system":"1900"}

{"sheet":"1","index":0,"n_rows":26,"n_cols":14,"rows_kept":26,"cut":false,"hidden":false,"merged":[[15,1,21,1],[9,10,13,10],[19,10,20,10],[15,10,18,10],[19,2,22,2],[20,8,23,8],[20,9,23,9],[15,2,18,2],[15,3,18,3],[15,6,18,6],[5,1,12,1],[5,7,8,9],[9,7,12,7],[15,4,19,4],[9,8,13,8],[5,13,8,15],[9,2,13,2],[5,2,8,6],[5,10,8,12],[0,0,0,15],[2,0,2,15],[3,7,3,9],[3,13,3,15],[3,2,3,6],[3,10,3,12],[13,7,16,7],[14,8,17,8],[11,13,14,13],[17,5,20,5],[20,4,23,4],[11,9,14,9]]}
["MD Year 1"]
[null,"07:30:00",null,null,null,null,null,30]
["Weeks 1-16"]
["Time","Monday","Tuesday",null,null,null,null,"Wednesday",null,null,"Thursday",null,null,"Friday"]
[{"$f":"StartTime","v":"07:30:00"}]
[{"$f":"A5+TIME(0,Interval,0)","v":"08:00:00"},"Whole Cohort activities ","Whole Cohort activities",null,null,null,null,"Whole Cohort activities",null,null,"Whole Cohort activities",null,null,"Whole Cohort activities"]
["08:30:00"]
["09:00:00"]
["09:30:00"]
["10:00:00",null,"TBL 1\nGoup 1\n\nWeeks 1-4, 7, 9-12, 15-16",null,null,null,null,"Research and Evidence in Practice\nWorkshop\n\nWeeks  8, 15","TBL 1\nGoup 1\n\nWeeks 13-14",null,"TBL 2\n\nWeeks 2, 4-8, 9, 12-16",null,null," "]
["10:30:00"]
["11:00:00",null,null,null,null,null,null,null,null,"Anatomy Multi-Disciplinary Practical\nWeeks 10",null,null,null,"Anatomy Multi-Disciplinary Practical\nWeeks 1-2 "]
["11:30:00"]
["12:00:00",null,null,null,null,null,null,"PSW 1 - Infection Control (HH & PPE)\n - Group 1\nWeek 1"]
[{"$f":"A14+TIME(0,Interval,0)","v":"12:30:00"},null,null,null,null,null,null,null,"Foundations of History & Examination\n\nWeeks 3-15"]
["13:00:00","Whole Cohort activities ","Histology Practical\n\nWeeks 2-3, 7, 11, 14","Research and Evidence in Practice\nWorkshop\n\nWeeks 16","TBL 1\nGoup 1\n\nWeeks 5-6, 8",null,"Advocacy and Public Health\nWorkshop\n\nWeek 10",null,null,null,"Anatomy Multi-Disciplinary Practical\nWeeks 12, 14-15",null,null," "]
["13:30:00"]
["14:00:00",null,null,null,null,"Anatomy Multi-Disciplinary Practical\nWeeks 9",null," "]
["14:30:00"]
["15:00:00",null,"Practical:   Microbiology\n\nWeek 4",null,null,null,null," ",null,null,"Pathology Practical\nWeeks 1-2, 6, 9-12, 14-15 ",null,null," "]
["15:30:00",null,null,null,"Anatomy Multi-Disciplinary Practical\nWeeks 11",null,null,null,"Practical:   Pharmacology\n\nWeek 5","Practical:   Physiology\n\nWeeks 8-9, 11-13"]
["16:00:00",null,null,null,null,null,null," "]
["16:30:00"]
["17:00:00"]
["17:30:00"]
["18:00:00",null," "]

{"sheet":"2","index":1,"n_rows":26,"n_cols":15,"rows_kept":26,"cut":false,"hidden":false,"merged":[[11,13,14,13],[9,14,12,14],[15,4,19,4],[15,6,18,6],[15,10,18,10],[17,5,20,5],[19,10,20,10],[20,4,23,4],[20,8,23,8],[20,9,23,9],[9,8,13,8],[16,7,19,7],[9,10,13,10],[19,2,22,2],[15,1,21,1],[15,2,18,2],[15,3,18,3],[5,10,8,12],[5,1,12,1],[9,2,13,2],[5,2,8,6],[5,7,8,9],[9,7,12,7],[11,9,14,9],[5,13,8,15],[0,0,0,15],[2,0,2,15],[3,2,3,6],[3,7,3,9],[3,10,3,12],[3,13,3,15]]}
["MD Year 1"]
[null,"07:30:00","07:30:00",null,null,null,null,30]
["Weeks 1-16"]
["Time","Monday","Tuesday",null,null,null,null,"Wednesday",null,null,"Thursday",null,null,"Friday"]
[{"$f":"StartTime","v":"07:30:00"}]
[{"$f":"A5+TIME(0,Interval,0)","v":"08:00:00"},"Whole Cohort activities ","Whole Cohort activities",null,null,null,null,"Whole Cohort activities",null,null,"Whole Cohort activities",null,null,"Whole Cohort activities"]
["08:30:00"]
["09:00:00"]
["09:30:00"]
["10:00:00",null,"TBL 1\nGoup 1\n\nWeeks 1-4, 7, 9-12, 15-16",null,null,null,null,"Research and Evidence in Practice\nWorkshop\n\nWeeks  8, 15","TBL 1\nGoup 1\n\nWeeks 13-14",null,"TBL 2\n\nWeeks 2, 4-8, 9, 12-16",null,null," ","Foundations of History & Examination\n\nWeeks 3-15"]
["10:30:00"]
["11:00:00",null,null,null,null,null,null,null,null,"Anatomy Multi-Disciplinary Practical\nWeeks 10",null,null,null,"Anatomy Multi-Disciplinary Practical\nWeeks 1-2 "]
["11:30:00"]
["12:00:00",null,null,null,null,null,null," "]
[{"$f":"A14+TIME(0,Interval,0)","v":"12:30:00"}]
["13:00:00","Whole Cohort activities ","Histology Practical\n\nWeeks 2-3, 7, 11, 14","Research and Evidence in Practice\nWorkshop\n\nWeeks 16","TBL 1\nGoup 1\n\nWeeks 5-6, 8",null,"Advocacy and Public Health\nWorkshop\n\nWeek 10",null,null,null,"Anatomy Multi-Disciplinary Practical\nWeeks 12, 14-15",null,null," "]
["13:30:00",null,null,null,null,null,null,"PSW 1 - Infection Control (HH & PPE)\n - Group 1\nWeek 1"]
["14:00:00",null,null,null,null,"Anatomy Multi-Disciplinary Practical\nWeeks 9"]
["14:30:00"]
["15:00:00",null,"Practical:   Microbiology\n\nWeek 4",null,null,null,null,null,null,null,"Pathology Practical\nWeeks 1-2, 6, 9-12, 14-15 ",null,null," "]
["15:30:00",null,null,null,"Anatomy Multi-Disciplinary Practical\nWeeks 11",null,null,null,"Practical:   Pharmacology\n\nWeek 5","Practical:   Physiology\n\nWeeks 8-9, 11-13"]
["16:00:00",null,null,null,null,null,null," "]
["16:30:00"]
["17:00:00"]
["17:30:00"]
["18:00:00",null," "]

{"sheet":"3","index":2,"n_rows":26,"n_cols":15,"rows_kept":26,"cut":false,"hidden":false,"merged":[[11,13,14,13],[10,11,13,11],[17,14,20,14],[5,13,8,15],[0,0,0,15],[2,0,2,15],[3,2,3,6],[3,7,3,9],[3,10,3,12],[3,13,3,15],[5,1,12,1],[9,10,13,10],[15,1,21,1],[9,2,13,2],[5,2,8,6],[5,7,8,9],[5,10,8,12],[15,2,18,2],[15,6,18,6],[15,10,18,10],[19,10,20,10],[20,8,23,8],[20,9,23,9],[15,3,18,3],[15,4,19,4],[17,5,20,5],[19,2,22,2],[20,4,23,4],[9,7,12,7],[9,8,13,8],[11,9,14,9]]}
["MD Year 1"]
[null,"07:30:00","07:30:00",null,null,null,null,30,30]
["Weeks 1-16"]
["Time","Monday","Tuesday",null,null,null,null,"Wednesday",null,null,"Thursday",null,null,"Friday"]
[{"$f":"StartTime","v":"07:30:00"}]
[{"$f":"A5+TIME(0,Interval,0)","v":"08:00:00"},"Whole Cohort activities ","Whole Cohort activities",null,null,null,null,"Whole Cohort activities",null,null,"Whole Cohort activities",null,null,"Whole Cohort activities"]
["08:30:00"]
["09:00:00"]
["09:30:00"]
["10:00:00",null,"TBL 1\nGoup 1\n\nWeeks 1-4, 7, 9-12, 15-16",null,null,null,null,"Research and Evidence in Practice\nWorkshop\n\nWeeks  8, 15","TBL 1\nGoup 1\n\nWeeks 13-14",null,"TBL 2\n\nWeeks 2, 4-8, 9, 12-16",null,null," "]
["10:30:00",null,null,null,null,null,null,null,null,null,null,"PSW 1 - Infection Control (HH & PPE)\n - Group 1\nWeek 1"]
["11:00:00",null,null,null,null,null,null,null,null,"Anatomy Multi-Disciplinary Practical\nWeeks 10",null,null,null,"Anatomy Multi-Disciplinary Practical\nWeeks 1-2 "]
["11:30:00"]
["12:00:00",null,null,null,null,null,null," "]
[{"$f":"A14+TIME(0,Interval,0)","v":"12:30:00"}]
["13:00:00","Whole Cohort activities ","Histology Practical\n\nWeeks 2-3, 7, 11, 14","Research and Evidence in Practice\nWorkshop\n\nWeeks 16","TBL 1\nGoup 1\n\nWeeks 5-6, 8",null,"Advocacy and Public Health\nWorkshop\n\nWeek 10"," ",null,null,"Anatomy Multi-Disciplinary Practical\nWeeks 12, 14-15",null,null," "]
["13:30:00"]
["14:00:00",null,null,null,null,"Anatomy Multi-Disciplinary Practical\nWeeks 9",null," ",null,null,null,null,null,null,"Foundations of History & Examination\n\nWeeks 3-15"]
["14:30:00"]
["15:00:00",null,"Practical:   Microbiology\n\nWeek 4",null,null,null,null," ",null,null,"Pathology Practical\nWeeks 1-2, 6, 9-12, 14-15 ",null,null," "]
["15:30:00",null,null,null,"Anatomy Multi-Disciplinary Practical\nWeeks 11",null,null,null,"Practical:   Pharmacology\n\nWeek 5","Practical:   Physiology\n\nWeeks 8-9, 11-13"]
["16:00:00",null,null,null,null,null,null," "]
["16:30:00"]
["17:00:00"]
["17:30:00"]
["18:00:00",null," "]

{"sheet":"4","index":3,"n_rows":26,"n_cols":15,"rows_kept":26,"cut":false,"hidden":false,"merged":[[15,1,21,1],[15,2,18,2],[15,6,18,6],[15,10,18,10],[19,2,22,2],[15,11,18,11],[9,14,12,14],[15,3,18,3],[15,4,19,4],[17,5,20,5],[20,4,23,4],[19,10,20,10],[20,8,23,8],[20,9,23,9],[5,1,12,1],[5,2,8,6],[5,7,8,9],[5,10,8,12],[5,13,8,15],[9,2,13,2],[9,10,13,10],[9,7,12,7],[9,8,13,8],[11,9,14,9],[11,13,14,13],[0,0,0,15],[2,0,2,15],[3,2,3,6],[3,7,3,9],[3,10,3,12],[3,13,3,15]]}
["MD Year 1"]
[null,"07:30:00","07:30:00",null,null,null,null,30,30]
["Weeks 1-16"]
["Time","Monday","Tuesday",null,null,null,null,"Wednesday",null,null,"Thursday",null,null,"Friday"]
[{"$f":"StartTime","v":"07:30:00"}]
[{"$f":"A5+TIME(0,Interval,0)","v":"08:00:00"},"Whole Cohort activities ","Whole Cohort activities",null,null,null,null,"Whole Cohort activities",null,null,"Whole Cohort activities",null,null,"Whole Cohort activities"]
["08:30:00"]
["09:00:00"]
["09:30:00"]
["10:00:00",null,"TBL 1\nGoup 1\n\nWeeks 1-4, 7, 9-12, 15-16",null,null,null,null,"Research and Evidence in Practice\nWorkshop\n\nWeeks  8, 15","TBL 1\nGoup 1\n\nWeeks 13-14",null,"TBL 2\n\nWeeks 2, 4-8, 9, 12-16",null,null," ","Foundations of History & Examination\n\nWeeks 3-15"]
["10:30:00"]
["11:00:00",null,null,null,null,null,null,null,null,"Anatomy Multi-Disciplinary Practical\nWeeks 10",null,null,null,"Anatomy Multi-Disciplinary Practical\nWeeks 1-2 "]
["11:30:00"]
["12:00:00",null,null,null,null,null,null," "]
[{"$f":"A14+TIME(0,Interval,0)","v":"12:30:00"}]
["13:00:00","Whole Cohort activities ","Histology Practical\n\nWeeks 2-3, 7, 11, 14","Research and Evidence in Practice\nWorkshop\n\nWeeks 16","TBL 1\nGoup 1\n\nWeeks 5-6, 8",null,"Advocacy and Public Health\nWorkshop\n\nWeek 10"," ",null,null,"Anatomy Multi-Disciplinary Practical\nWeeks 12, 14-15","PSW 1 - Infection Control (HH & PPE)\n - Group 1\nWeek 1",null," "]
["13:30:00"]
["14:00:00",null,null,null,null,"Anatomy Multi-Disciplinary Practical\nWeeks 9",null," "]
["14:30:00"]
["15:00:00",null,"Practical:   Microbiology\n\nWeek 4",null,null,null,null," ",null,null,"Pathology Practical\nWeeks 1-2, 6, 9-12, 14-15 ",null,null," "]
["15:30:00",null,null,null,"Anatomy Multi-Disciplinary Practical\nWeeks 11",null,null,null,"Practical:   Pharmacology\n\nWeek 5","Practical:   Physiology\n\nWeeks 8-9, 11-13"]
["16:00:00",null,null,null,null,null,null," "]
["16:30:00"]
["17:00:00"]
["17:30:00"]
["18:00:00",null," "]